bitfinex/quotes_SOLUSD_20241223
["timestamp","ask_amount","ask_price","bid_price","bid_amount"]
[1734990451056,23.56403265,191.02,190.95,23.56403265]
[1734990451483,23.56403265,191.02,190.94,23.56403265]
[1734990451888,23.56403265,191.02,190.95,23.56403265]
[1734990452176,23.56403265,191.04,190.97,23.56403265]
[1734990452411,23.56403265,191.03,190.96,23.56403265]
[1734990452579,23.56403265,191.05,190.98,23.56403265]
[1734990452740,23.56403265,191.06,190.98,23.56403265]
[1734990452943,23.56403265,191.04,190.97,23.56403265]
[1734990453144,23.56403265,191.04,190.96,23.56403265]
[1734990453383,23.56403265,191.03,190.96,23.56403265]
[1734990453878,23.56403265,191.04,190.96,23.56403265]
[1734990454294,23.56403265,191.07,190.99,23.56403265]
[1734990454583,23.56403265,191.06,190.98,23.56403265]
[1734990454790,24.42665033,191.06,190.98,23.56403265]
[1734990455086,23.56403265,191.03,190.96,23.56403265]
[1734990455276,23.56403265,191.03,190.93,0.6761286]
[1734990455277,23.56403265,190.98,190.93,0.6761286]
[1734990455949,24.42665033,190.97,190.93,0.6761286]
[1734990456204,23.56403265,190.95,190.93,0.6761286]
[1734990458285,0.86261768,190.94,190.93,0.6761286]
[1734990460691,30.0,190.91,190.74,0.6761286]
[1734990460890,23.56403265,190.81,190.74,0.6761286]
[1734990461076,0.86261768,190.8,190.71,8.2775]
[1734990461273,23.56403265,190.79,190.71,31.84153265]
[1734990461693,0.86261768,190.78,190.71,31.84153265]
[1734990463173,0.86261768,190.78,190.67,2.04597199]
[1734990463174,0.86261768,190.78,190.69,23.56403265]
[1734990463495,0.86261768,190.78,190.65,1.6443]
[1734990463496,23.56403265,190.75,190.65,23.56403265]
[1734990463722,0.86261768,190.74,190.65,23.56403265]
[1734990463910,0.86261768,190.74,190.67,23.56403265]
[1734990464385,23.56403265,190.73,190.65,23.56403265]
[1734990464586,0.86261768,190.72,190.65,23.56403265]
[1734990464788,0.86261768,190.74,190.65,23.56403265]
[1734990465028,0.86261768,190.74,190.67,23.56403265]
[1734990466089,23.56403265,190.71,190.64,23.56403265]
[1734990466285,23.56403265,190.73,190.66,23.56403265]
[1734990466482,7.8628,190.77,190.6,13.1158]
[1734990466483,23.56403265,190.74,190.67,23.56403265]
[1734990466689,0.86261768,190.73,190.67,23.56403265]
[1734990467001,23.56403265,190.71,190.63,23.56403265]
[1734990467190,23.56403265,190.71,190.59,6.6332]
[1734990467390,23.56403265,190.71,190.62,23.56403265]
[1734990467796,23.56403265,190.71,190.6,23.56403265]
[1734990468200,31.42933265,190.71,190.59,6.6332]
[1734990468502,32.29195033,190.71,190.59,6.6332]
[1734990468704,20.0,190.68,190.55,6.5148]
[1734990468899,23.56403265,190.63,190.55,30.07883265]
[1734990469197,23.56403265,190.58,190.5,6.5148]
[1734990469398,23.56403265,190.63,190.44,13.127]
[1734990469399,24.42665033,190.57,190.44,13.127]
[1734990469611,24.42665033,190.57,190.49,23.56403265]
[1734990470538,24.42665033,190.57,190.4,13.1298]
[1734990470539,23.56403265,190.55,190.4,13.1298]
[1734990470818,23.56403265,190.55,190.44,23.56403265]
[1734990471004,23.56403265,190.55,190.37,2.21527374]
[1734990471207,23.56403265,190.5,190.37,2.21527374]
[1734990471406,23.56403265,190.52,190.43,23.56403265]
[1734990471596,23.56403265,190.5,190.41,23.56403265]
[1734990471911,23.56403265,190.5,190.38,1.596]
[1734990471912,23.56403265,190.48,190.39,23.56403265]
[1734990472097,0.86261768,190.47,190.39,23.56403265]
[1734990472293,23.56403265,190.44,190.37,2.21527374]
[1734990472497,23.56403265,190.42,190.37,2.21527374]
[1734990472706,0.86261768,190.41,190.37,2.21527374]
[1734990473318,0.86261768,190.48,190.4,23.56403265]
[1734990473598,0.86261768,190.53,190.37,4.59893073]
[1734990473797,23.56403265,190.51,190.44,23.56403265]
[1734990474003,0.86261768,190.5,190.42,23.56403265]
[1734990474198,23.56403265,190.53,190.44,23.56403265]
[1734990474500,23.56403265,190.49,190.37,3.81127374]
[1734990474699,23.56403265,190.51,190.43,23.56403265]
[1734990475099,0.86261768,190.5,190.43,22.06403265]
[1734990475300,24.42665033,190.5,190.43,22.06403265]
[1734990475503,24.42665033,190.5,190.41,23.56403265]
[1734990476193,23.56403265,190.47,190.37,25.77930639]
[1734990476403,23.56403265,190.45,190.37,25.77930639]
[1734990476598,0.86261768,190.44,190.37,25.77930639]
[1734990476904,0.86261768,190.46,190.39,23.56403265]
[1734990477519,23.56403265,190.47,190.39,23.56403265]
[1734990477916,23.56403265,190.51,190.41,23.56403265]
[1734990478099,24.42665033,190.53,190.43,23.56403265]
[1734990478301,14.25327927,190.58,190.37,2.21527374]
[1734990478302,23.56403265,190.44,190.37,2.21527374]
[1734990478499,23.56403265,190.43,190.37,2.21527374]
[1734990478718,23.56403265,190.47,190.38,23.56403265]
[1734990478898,0.86261768,190.46,190.38,23.56403265]
[1734990479101,23.56403265,190.45,190.37,2.21527374]
[1734990479295,0.86261768,190.44,190.37,2.21527374]
[1734990479494,23.56403265,190.45,190.37,2.21527374]
[1734990479705,23.56403265,190.47,190.4,23.56403265]
[1734990480027,0.86261768,190.51,190.4,23.56403265]
[1734990480028,23.56403265,190.49,190.4,23.56403265]
[1734990480233,24.42665033,190.51,190.42,23.56403265]
[1734990480398,23.56403265,190.49,190.4,23.56403265]
[1734990480604,23.56403265,190.47,190.38,23.56403265]
[1734990481133,0.86261768,190.46,190.38,23.56403265]
[1734990481291,23.56403265,190.45,190.37,2.21527374]
[1734990481627,23.56403265,190.41,190.37,2.21527374]
[1734990481807,23.56403265,190.43,190.37,2.21527374]
[1734990482501,23.56403265,190.41,190.37,2.21527374]
[1734990482903,23.56403265,190.43,190.37,2.21527374]
[1734990483111,23.56403265,190.45,190.37,2.21527374]
[1734990483536,23.56403265,190.42,190.37,2.21527374]
[1734990483848,23.56403265,190.46,190.38,23.56403265]
[1734990484130,0.86261768,190.57,190.42,23.56403265]
[1734990484419,23.56403265,190.51,190.42,23.56403265]
[1734990485099,23.56403265,190.47,190.39,25.15053265]
[1734990485299,23.56403265,190.43,190.37,2.21527374]
[1734990486599,23.56403265,190.45,190.37,2.21527374]
[1734990486805,23.56403265,190.45,190.38,23.56403265]
[1734990487034,23.56403265,190.47,190.38,23.56403265]
[1734990487229,23.56403265,190.47,190.4,23.56403265]
[1734990487416,23.56403265,190.47,190.38,23.56403265]
[1734990488631,23.56403265,190.49,190.42,23.56403265]
[1734990489334,23.56403265,190.55,190.46,23.56403265]
[1734990489509,23.56403265,190.55,190.48,23.56403265]
[1734990489704,23.56403265,190.57,190.48,23.56403265]
[1734990489920,23.56403265,190.53,190.46,23.56403265]
[1734990490116,23.56403265,190.53,190.44,23.56403265]
[1734990490433,23.56403265,190.51,190.44,23.56403265]
[1734990490632,23.56403265,190.53,190.44,23.56403265]
[1734990490813,23.56403265,190.53,190.42,23.776884]
[1734990490814,23.56403265,190.55,190.46,23.56403265]
[1734990491135,23.56403265,190.57,190.48,23.56403265]
[1734990491633,23.56403265,190.57,190.43,0.91264459]
[1734990491825,23.56403265,190.5,190.43,23.56403265]
[1734990492630,23.56403265,190.5,190.4,14.7143]
[1734990492830,23.56403265,190.5,190.41,23.56403265]
[1734990493033,23.56403265,190.48,190.41,23.56403265]
[1734990494135,23.56403265,190.5,190.41,23.56403265]
[1734990494635,23.56403265,190.48,190.41,23.56403265]
[1734990495830,0.86261768,190.53,190.37,8.37317374]
[1734990495831,23.56403265,190.44,190.37,31.93720639]
[1734990496613,23.56403265,190.46,190.39,23.56403265]
[1734990497014,23.56403265,190.48,190.39,23.56403265]
[1734990497461,23.56403265,190.5,190.41,23.56403265]
[1734990497643,5.0,190.48,190.43,23.56403265]
[1734990498136,5.0,190.48,190.45,23.56403265]
[1734990500642,5.0,190.48,190.47,23.56403265]
[1734990500843,5.0,190.48,190.47,47.46640665]
[1734990501134,5.0,190.48,190.47,49.01630665]
[1734990501342,23.56403265,190.64,190.48,43.457474]
[1734990501643,24.42665033,190.66,190.57,23.56403265]
[1734990501852,23.56403265,190.66,190.57,23.56403265]
[1734990502550,23.56403265,190.66,190.59,23.56403265]
[1734990502846,23.56403265,190.68,190.59,23.56403265]
[1734990503020,23.56403265,190.61,190.51,23.56403265]
[1734990503224,23.56403265,190.58,190.49,47.34091665]
[1734990503430,23.56403265,190.58,190.48,6.4304]
[1734990503653,23.56403265,190.58,190.49,23.56403265]
[1734990504152,23.56403265,190.58,190.51,23.56403265]
[1734990504445,23.56403265,190.62,190.53,23.56403265]
[1734990504923,6.74369038,190.7,190.51,23.56403265]
[1734990504924,23.56403265,190.6,190.51,23.56403265]
[1734990506450,23.56403265,190.6,190.53,23.56403265]
[1734990507528,23.56403265,190.62,190.53,23.56403265]
[1734990508136,23.56403265,190.62,190.55,23.56403265]
[1734990508347,23.56403265,190.64,190.55,23.56403265]
[1734990508852,23.56403265,190.66,190.57,23.56403265]
[1734990509034,23.56403265,190.64,190.57,23.56403265]
[1734990509234,23.56403265,190.64,190.55,23.56403265]
[1734990510623,23.56403265,190.66,190.57,23.56403265]
[1734990510935,23.56403265,190.66,190.59,23.56403265]
[1734990511252,23.56403265,190.61,190.52,0.78680086]
[1734990511465,23.56403265,190.6,190.52,23.56403265]
[1734990511631,23.56403265,190.58,190.5,23.56403265]
[1734990513666,23.56403265,190.6,190.52,23.56403265]
[1734990514032,23.56403265,190.62,190.54,23.56403265]
[1734990515257,31.43303265,190.62,190.54,23.56403265]
[1734990518559,23.56403265,190.62,190.54,23.56403265]
[1734990519245,7.8689,190.63,190.5,23.56403265]
[1734990519246,23.56403265,190.58,190.5,23.56403265]
[1734990519459,23.56403265,190.56,190.48,23.56403265]
[1734990519660,0.86261768,190.6,190.5,23.56403265]
[1734990519661,23.56403265,190.58,190.5,23.56403265]
[1734990520137,23.56403265,190.6,190.52,23.56403265]
[1734990520564,23.56403265,190.62,190.54,23.56403265]
[1734990520740,0.86261768,190.61,190.54,23.56403265]
[1734990521340,23.56403265,190.6,190.52,23.56403265]
[1734990521961,23.56403265,190.62,190.54,23.56403265]
[1734990522270,23.56403265,190.58,190.5,23.56403265]
[1734990522955,8.73371768,190.57,190.5,23.56403265]
[1734990523541,23.56403265,190.56,190.48,23.56403265]
[1734990525453,23.56403265,190.52,190.44,23.94974385]
[1734990525649,23.56403265,190.5,190.44,0.3857112]
[1734990527073,31.43633265,190.54,190.46,23.56403265]
[1734990527246,32.29895033,190.54,190.46,23.56403265]
[1734990527644,32.29895033,190.54,190.44,23.94974385]
[1734990528472,23.56403265,190.52,190.44,23.94974385]
[1734990529468,31.43633265,190.54,190.46,23.56403265]
[1734990529768,23.56403265,190.54,190.46,23.56403265]
[1734990530856,23.56403265,190.56,190.48,23.56403265]
[1734990531054,23.56403265,190.58,190.5,23.56403265]
[1734990531376,0.86261768,190.57,190.5,23.56403265]
[1734990531672,23.56403265,190.54,190.44,0.3857112]
[1734990531846,23.56403265,190.52,190.44,23.94974385]
[1734990532047,23.56403265,190.5,190.44,0.3857112]
[1734990532282,20.86261768,190.51,190.44,0.3857112]
[1734990532283,23.56403265,190.48,190.44,0.3857112]
[1734990533154,23.56403265,190.5,190.44,0.3857112]
[1734990534169,23.56403265,190.48,190.44,0.3857112]
[1734990534379,20.0,190.47,190.44,0.3857112]
[1734990534562,23.56403265,190.48,190.44,0.3857112]
[1734990535546,23.56403265,190.46,190.44,0.3857112]
[1734990536346,0.86261768,190.45,190.44,0.3857112]
[1734990537278,0.86261768,190.45,190.44,1.12e-05]
[1734990537665,8.73861768,190.45,190.44,1.12e-05]
[1734990538676,20.0,190.42,190.37,2.21527374]
[1734990538895,23.56403265,190.38,190.37,2.21527374]
[1734990539771,31.44293265,190.38,190.37,2.21527374]
[1734990539976,32.30555033,190.38,190.37,2.21527374]
[1734990540219,32.30555033,190.38,190.27,23.56403265]
[1734990540516,23.56403265,190.35,190.27,23.56403265]
[1734990540689,7.8789,190.38,190.31,23.56403265]
[1734990540887,23.56403265,190.41,190.33,23.56403265]
[1734990541278,0.86261768,190.4,190.33,23.56403265]
[1734990541477,23.56403265,190.41,190.33,23.56403265]
[1734990541797,23.56403265,190.44,190.35,23.56403265]
[1734990542179,24.42665033,190.44,190.35,23.56403265]
[1734990542579,23.56403265,190.44,190.37,23.56403265]
[1734990542799,5.0,190.45,190.39,23.56403265]
[1734990543605,5.0,190.45,190.37,23.56403265]
[1734990544178,5.0,190.45,190.39,23.56403265]
[1734990544882,5.0,190.45,190.41,23.56403265]
[1734990545195,5.0,190.45,190.39,23.56403265]
[1734990545405,5.0,190.45,190.37,23.56403265]
[1734990546279,23.56403265,190.42,190.35,23.56403265]
[1734990546476,23.56403265,190.42,190.34,6.5047]
[1734990546477,5.0,190.45,190.41,23.56403265]
[1734990546822,5.0,190.45,190.39,23.56403265]
[1734990547117,23.56403265,190.43,190.35,23.56403265]
[1734990548107,23.56403265,190.43,190.34,6.5047]
[1734990548884,23.56403265,190.41,190.33,23.56403265]
[1734990550905,23.56403265,190.43,190.33,23.56403265]
[1734990551200,23.56403265,190.43,190.35,23.56403265]
[1734990552102,28.56403265,190.45,190.35,23.56403265]
[1734990552607,5.0,190.45,190.37,23.56403265]
[1734990553206,5.0,190.45,190.39,23.56403265]
[1734990553595,5.0,190.45,190.41,23.56403265]
[1734990554507,5.0,190.45,190.4,23.56403265]
[1734990556890,5.0,190.45,190.42,23.56403265]
[1734990557287,5.0,190.45,190.4,23.56403265]
[1734990558006,5.0,190.45,190.36,25.87087025]
[1734990558007,28.56403265,190.45,190.38,23.56403265]
[1734990558220,28.56403265,190.45,190.36,23.56403265]
[1734990559314,23.56403265,190.43,190.35,23.56403265]
[1734990561091,23.56403265,190.41,190.33,23.56403265]
[1734990564804,23.56403265,190.43,190.35,23.56403265]
[1734990565544,23.56403265,190.43,190.35,23.24878265]
[1734990566645,5.0,190.45,190.39,23.56403265]
[1734990567310,23.56403265,190.43,190.35,23.56403265]
[1734990567608,23.56403265,190.44,190.37,23.56403265]
[1734990568001,23.56403265,190.43,190.36,23.56403265]
[1734990569242,23.56403265,190.43,190.35,23.56403265]
[1734990570149,23.56403265,190.42,190.35,23.56403265]
[1734990570945,23.56403265,190.39,190.31,23.56403265]
[1734990572611,23.56403265,190.38,190.31,23.56403265]
[1734990573720,1.5883,190.4,190.36,23.56403265]
[1734990575237,1.5883,190.4,190.34,23.56403265]
[1734990577427,25.15233265,190.4,190.32,23.56403265]
[1734990577623,23.56403265,190.38,190.32,23.56403265]
[1734990578128,1.5883,190.4,190.28,21.036147]
[1734990578129,13.5791706,190.39,190.31,13.5791706]
[1734990579227,2.45091768,190.4,190.31,13.5791706]
[1734990579428,16.03008828,190.4,190.31,13.5791706]
[1734990579742,13.5791706,190.38,190.31,13.5791706]
[1734990580842,1.5883,190.4,190.35,13.5791706]
[1734990583533,15.1674706,190.4,190.29,23.902374]
[1734990583738,15.1674706,190.4,190.32,13.5791706]
[1734990584941,1.5883,190.4,190.34,13.5791706]
[1734990587161,15.1674706,190.4,190.32,13.5791706]
[1734990589859,1.5883,190.4,190.34,13.5791706]
[1734990590354,1.5883,190.4,190.31,0.12549]
[1734990590554,1.5883,190.4,190.35,13.5791706]
[1734990592261,8.73911768,190.44,190.35,13.5791706]
[1734990592554,13.5791706,190.43,190.35,13.5791706]
[1734990593163,5.0,190.4,190.35,13.5791706]
[1734990594856,5.0,190.4,190.37,13.5791706]
[1734990595165,5.0,190.4,190.39,13.5791706]
[1734990595367,5.0,190.4,190.38,13.5791706]
[1734990595568,5.0,190.4,190.39,13.5791706]
[1734990596556,5.0,190.4,190.39,13.7046606]
[1734990596956,5.0,190.4,190.39,13.5791706]
[1734990598440,5.0,190.4,190.36,13.5791706]
[1734990599346,5.0,190.4,190.32,0.12549]
[1734990599541,5.0,190.4,190.36,13.5791706]
[1734990599741,5.0,190.4,190.39,13.5791706]
[1734990600144,94.47346077,190.26,190.23,9.63487571]
[1734990600459,1.5722,190.26,190.1,3.67]
[1734990600666,0.98567382,190.25,190.12,13.5791706]
[1734990600853,1.5722,190.26,190.13,72.47440112]
[1734990601044,13.5791706,190.29,190.13,72.47440112]
[1734990601240,13.5791706,190.31,190.14,13.1482]
[1734990601446,13.5791706,190.29,190.13,15.52988682]
[1734990601767,1.6165,190.34,190.24,13.5791706]
[1734990601950,13.5791706,190.39,190.28,13.5791706]
[1734990602149,5.0,190.4,190.33,0.12549]
[1734990602462,5.0,190.4,190.37,0.12549]
[1734990602664,37.51418827,190.39,190.26,8.83211787]
[1734990602867,62.15143539,190.39,190.35,13.5791706]
[1734990603179,24.72414799,190.38,190.27,312.0]
[1734990603383,26.77404884,190.37,190.25,99.94152542]
[1734990603680,39.28139511,190.37,190.35,13.5791706]
[1734990603844,10.64707607,190.36,190.35,13.5791706]
[1734990604247,30.75052565,190.37,190.35,13.5791706]
[1734990604581,64.97139815,190.64,190.44,15.74]
[1734990604758,78.55056875,190.64,190.47,35.74]
[1734990604955,102.51264447,190.7,190.47,20.0]
[1734990604956,18.5791706,190.62,190.47,20.0]
[1734990605282,13.5791706,190.6,190.5,13.5791706]
[1734990605985,16.10143628,190.51,190.5,13.7046606]
[1734990606290,12.81543628,190.51,190.5,13.7046606]
[1734990606796,32.20287256,190.54,190.53,20.12549]
[1734990606953,32.20287256,190.54,190.53,33.7046606]
[1734990607557,29.19027256,190.54,190.53,57.4815446]
[1734990607757,3.84417256,190.54,190.53,57.4815446]
[1734990608062,7.256e-05,190.54,190.53,57.4815446]
[1734990608287,7.256e-05,190.54,190.53,65.56361696]
[1734990608794,5.0,190.62,190.57,0.12549]
[1734990608968,26.66124296,190.62,190.46,2.11717166]
[1734990609281,21.66124296,190.6,190.51,34.78384296]
[1734990609467,21.66124296,190.6,190.52,0.12549]
[1734990609669,26.66124296,190.62,190.54,0.12549]
[1734990611459,5.0,190.62,190.58,0.12549]
[1734990611658,5.0,190.62,190.59,21.66124296]
[1734990612167,5.0,190.62,190.58,0.12549]
[1734990612368,5.0,190.62,190.6,0.12549]
[1734990612766,5.0,190.62,190.61,21.78673296]
[1734990614282,5.0,190.62,190.61,0.12549]
[1734990614478,5.0,190.62,190.61,21.78673296]
[1734990614681,2.3244,190.62,190.61,34.90243296]
[1734990614853,0.0001,190.62,190.61,58.67931696]
[1734990616560,0.6775194,190.73,190.61,58.67931696]
[1734990616756,0.6775194,190.73,190.7,21.66124296]
[1734990616960,0.6775194,190.73,190.68,21.66124296]
[1734990617490,0.6775194,190.73,190.72,21.78673296]
[1734990618260,21.66124296,190.81,190.72,21.78673296]
[1734990618602,21.66124296,190.81,190.72,21.66124296]
[1734990618787,21.66124296,190.77,190.68,21.66124296]
[1734990619083,21.66124296,190.75,190.72,3.57483885]
[1734990619587,21.66124296,190.77,190.69,25.23608181]
[1734990620107,21.66124296,190.77,190.69,21.66124296]
[1734990620600,21.66124296,190.79,190.71,21.66124296]
[1734990621162,21.66124296,190.77,190.69,21.66124296]
[1734990621384,0.98271089,190.84,190.71,21.66124296]
[1734990621385,21.66124296,190.79,190.71,21.66124296]
[1734990621580,21.66124296,190.81,190.73,21.66124296]
[1734990623163,0.98262869,190.86,190.71,0.12549]
[1734990623370,21.66124296,190.84,190.76,21.66124296]
[1734990623607,21.66124296,190.86,190.78,21.66124296]
[1734990624976,21.66124296,190.88,190.8,21.66124296]
[1734990625176,0.6775194,190.92,190.82,21.66124296]
[1734990625399,21.66124296,190.9,190.82,21.66124296]
[1734990625602,21.66124296,190.9,190.83,21.66124296]
[1734990625780,0.6775194,190.92,190.83,21.66124296]
[1734990626091,21.66124296,190.9,190.83,21.66124296]
[1734990626787,22.33876236,190.92,190.85,21.66124296]
[1734990626996,21.66124296,190.9,190.83,21.66124296]
[1734990627181,21.66124296,190.9,190.81,21.66124296]
[1734990627788,21.66124296,190.9,190.82,21.66124296]
[1734990628699,0.6775194,190.92,190.85,21.66124296]
[1734990629292,0.6775194,190.92,190.87,21.66124296]
[1734990629485,0.6775194,190.92,190.88,21.66124296]
[1734990629800,0.6775194,190.92,190.89,21.66124296]
[1734990630295,0.6775194,190.92,190.87,21.66124296]
[1734990630494,0.6775194,190.92,190.85,21.66124296]
[1734990630702,0.6775194,190.92,190.88,21.66124296]
[1734990630917,21.66124296,190.96,190.89,21.66124296]
[1734990631200,21.66124296,190.99,190.91,21.66124296]
[1734990631380,28.17324296,191.0,190.92,21.66124296]
[1734990631587,6.512,191.0,190.93,21.66124296]
[1734990631902,6.512,191.0,190.94,21.66124296]
[1734990632081,21.66124296,191.02,190.94,21.66124296]
[1734990632399,21.66124296,191.02,190.95,21.66124296]
[1734990632649,21.66124296,191.01,190.93,21.66124296]
[1734990632775,3.43344161,191.01,190.9,20.0]
[1734990633099,21.66124296,190.99,190.92,21.66124296]
[1734990633300,21.66124296,190.95,190.88,21.66124296]
[1734990633611,21.66124296,190.91,190.83,21.66124296]
[1734990633792,21.66124296,190.91,190.84,21.66124296]
[1734990634689,21.66124296,190.93,190.84,21.66124296]
[1734990635008,21.66124296,190.95,190.86,21.66124296]
[1734990636414,21.66124296,190.95,190.87,0.12549]
[1734990636610,21.66124296,190.95,190.86,21.66124296]
[1734990637207,21.66124296,190.95,190.88,21.66124296]
[1734990638922,21.66124296,190.92,190.84,21.66124296]
[1734990639099,21.66124296,190.9,190.82,21.66124296]
[1734990639300,0.98231152,190.89,190.82,21.66124296]
[1734990639529,21.66124296,190.9,190.82,21.66124296]
[1734990639702,21.66124296,190.88,190.8,21.66124296]
[1734990640403,21.66124296,190.86,190.78,21.66124296]
[1734990640615,21.66124296,190.84,190.76,21.66124296]
[1734990642413,21.66124296,190.86,190.78,21.66124296]
[1734990642624,21.66124296,190.86,190.79,21.66124296]
[1734990642795,21.66124296,190.84,190.77,21.66124296]
[1734990643790,0.98258004,190.89,190.72,0.12549]
[1734990643791,21.66124296,190.86,190.79,21.66124296]
[1734990643993,21.66124296,190.88,190.81,21.66124296]
[1734990644200,2.67564497,190.92,190.72,0.12549]
[1734990644201,21.66124296,190.89,190.82,21.66124296]
[1734990644415,21.66124296,190.91,190.83,21.66124296]
[1734990644616,6.2441,190.93,190.87,21.66124296]
[1734990646507,6.2441,190.93,190.83,13.1003]
[1734990646508,21.66124296,190.92,190.85,21.66124296]
[1734990647114,21.66124296,190.9,190.83,21.66124296]
[1734990648015,21.66124296,190.91,190.83,21.66124296]
[1734990649231,21.66124296,190.92,190.84,21.66124296]
[1734990649407,6.2441,190.93,190.82,13.1012]
[1734990649408,6.2441,190.93,190.86,21.66124296]
[1734990649725,6.2441,190.93,190.89,21.66124296]
[1734990650033,6.2441,190.93,190.9,21.66124296]
[1734990650242,6.2441,190.93,190.83,0.12549]
[1734990650243,29.79464296,190.98,190.91,21.66124296]
[1734990650603,8.1334,190.98,190.91,21.66124296]
[1734990650907,8.1334,190.98,190.94,21.66124296]
[1734990651115,6.3157,190.98,190.93,21.66124296]
[1734990651516,6.3157,190.98,190.91,21.66124296]
[1734990651718,6.3157,190.98,190.89,13.0963]
[1734990651719,6.3157,190.98,190.92,21.66124296]
[1734990652124,6.3157,190.98,190.93,21.66124296]
[1734990652325,21.66124296,191.02,190.95,21.66124296]
[1734990652510,21.66124296,191.03,190.95,21.66124296]
[1734990652719,21.66124296,191.03,190.96,21.66124296]
[1734990652929,8.1554,191.04,190.98,21.66124296]
[1734990653717,29.81664296,191.04,190.96,21.66124296]
[1734990655907,21.66124296,191.02,190.95,21.66124296]
[1734990656325,21.66124296,191.03,190.95,21.66124296]
[1734990656915,29.81664296,191.04,190.96,21.66124296]
[1734990657240,29.81664296,191.04,190.97,21.66124296]
[1734990657439,8.1554,191.04,190.98,21.66124296]
[1734990657938,30.79810463,191.04,190.97,21.66124296]
[1734990658138,21.66124296,191.03,190.96,21.66124296]
[1734990658439,21.66124296,191.03,190.95,21.66124296]
[1734990658933,21.66124296,191.03,190.96,21.66124296]
[1734990659117,21.66124296,191.03,190.95,21.66124296]
[1734990659318,0.98164068,191.02,190.95,21.66124296]
[1734990659712,21.66124296,191.03,190.95,21.66124296]
[1734990659913,21.66124296,191.01,190.93,21.66124296]
[1734990660323,21.66124296,191.02,190.95,21.66124296]
[1734990660522,21.66124296,191.03,190.96,21.66124296]
[1734990660722,21.66124296,191.02,190.94,21.66124296]
[1734990661023,22.64285307,191.03,190.96,21.66124296]
[1734990661218,21.66124296,191.03,190.95,21.66124296]
[1734990661422,21.66124296,191.01,190.93,21.66124296]
[1734990661624,21.66124296,190.99,190.92,21.66124296]
[1734990661928,21.66124296,191.0,190.92,21.66124296]
[1734990662315,21.66124296,191.01,190.93,21.66124296]
[1734990662522,22.64302713,191.03,190.95,21.66124296]
[1734990662723,8.1554,191.04,190.98,21.66124296]
[1734990662941,8.1554,191.04,190.97,21.66124296]
[1734990663112,29.81664296,191.04,190.97,21.66124296]
[1734990663313,8.1554,191.04,190.97,21.66124296]
[1734990663916,8.1554,191.04,190.99,21.66124296]
[1734990664133,8.1554,191.04,190.98,21.66124296]
[1734990664330,29.81664296,191.04,190.97,21.66124296]
[1734990664535,29.81664296,191.04,190.95,21.66124296]
[1734990664536,21.66124296,191.03,190.95,21.66124296]
[1734990664717,29.81664296,191.04,190.97,21.66124296]
[1734990664920,8.1554,191.04,190.99,21.66124296]
[1734990665222,8.1554,191.04,190.97,21.66124296]
[1734990665417,8.1554,191.04,190.98,21.66124296]
[1734990665630,27.91954296,191.09,191.02,21.66124296]
[1734990665818,6.2583,191.09,191.03,21.66124296]
[1734990666836,0.6775194,191.11,191.06,21.66124296]
[1734990667425,0.6775194,191.11,191.07,21.66124296]
[1734990667626,0.6775194,191.11,191.05,21.66124296]
[1734990668522,0.6775194,191.11,191.07,21.66124296]
[1734990668737,0.6775194,191.11,191.08,21.66124296]
[1734990668926,0.6775194,191.11,191.07,21.66124296]
[1734990669924,0.6775194,191.11,191.08,21.66124296]
[1734990670438,6.4097,191.22,191.11,23.902374]
[1734990670645,8.5455,191.29,191.21,21.66124296]
[1734990670822,8.5455,191.29,191.14,20.0]
[1734990670823,9.52579817,191.29,191.22,21.66124296]
[1734990671243,31.18704113,191.29,191.22,21.66124296]
[1734990672513,9.52579817,191.29,191.22,21.66124296]
[1734990672717,0.6775194,191.3,191.26,21.66124296]
[1734990672943,0.6775194,191.3,191.27,21.66124296]
[1734990673834,0.6775194,191.3,191.28,21.66124296]
[1734990674019,0.6775194,191.3,191.29,21.66124296]
[1734990674342,0.6775194,191.3,191.29,21.78673296]
[1734990674639,0.6775194,191.3,191.29,21.66124296]
[1734990674818,0.6775194,191.3,191.25,21.66124296]
[1734990675238,21.66124296,191.29,191.22,21.66124296]
[1734990675444,21.66124296,191.28,191.21,21.66124296]
[1734990675741,0.98042924,191.27,191.21,21.66124296]
[1734990675928,22.33876236,191.3,191.23,21.66124296]
[1734990676647,22.6414815,191.29,191.22,21.66124296]
[1734990676946,22.33876236,191.3,191.23,21.66124296]
[1734990677146,0.6775194,191.3,191.24,21.66124296]
[1734990677819,1.65773059,191.3,191.24,21.66124296]
[1734990678120,23.31897355,191.3,191.23,21.66124296]
[1734990678945,21.66124296,191.28,191.21,21.66124296]
[1734990679245,0.98042809,191.27,191.21,21.66124296]
[1734990679418,22.64167105,191.27,191.2,21.66124296]
[1734990680548,0.98042809,191.27,191.21,21.66124296]
[1734990681134,22.64169303,191.28,191.21,21.66124296]
[1734990681638,22.64169303,191.28,191.14,0.12549]
[1734990681639,0.98045007,191.28,191.22,21.66124296]